[Event "GrandPrix_30.05"]
[Site "Chess.com"]
[Date "2020.05.30"]
[Round "6"]
[White "WhiteCapital80"]
[Black "Gareth-Bale11"]
[Result "1-0"]
[WhiteElo "2413"]
[BlackElo "2432"]
[TimeControl "600+2"]
[EndTime "10:52:55 PDT"]
[Termination "WhiteCapital80 won by resignation"]

1. e4 {[%clk 0:10:01.9]} 1... e5 {[%clk 0:09:59.1]} 2. Nf3 {[%clk 0:09:58.7]}
2... Nc6 {[%clk 0:09:59]} 3. Bb5 {[%clk 0:09:59.2]} 3... a6 {[%clk 0:09:59.2]}
4. Ba4 {[%clk 0:10:00.2]} 4... Nf6 {[%clk 0:10:00.1]} 5. d4 {[%clk 0:10:01.2]}
5... exd4 {[%clk 0:09:58.4]} 6. O-O {[%clk 0:10:00.5]} 6... Be7 {[%clk
0:09:32.4]} 7. e5 {[%clk 0:09:59.4]} 7... Ne4 {[%clk 0:09:15.4]} 8. Nxd4 {[%clk
0:09:58.5]} 8... Nc5 {[%clk 0:08:53]} 9. Nf5 {[%clk 0:09:15.9]} 9... Bf8 {[%clk
0:08:21.1]} 10. Bxc6 {[%clk 0:05:55.4]} 10... dxc6 {[%clk 0:08:20.1]} 11. Qxd8+
{[%clk 0:05:52]} 11... Kxd8 {[%clk 0:08:20.4]} 12. Nd4 {[%clk 0:05:36.9]} 12...
Bd7 {[%clk 0:07:17.9]} 13. Nc3 {[%clk 0:05:29.2]} 13... Kc8 {[%clk 0:07:17.8]}
14. Be3 {[%clk 0:05:21.5]} 14... Be7 {[%clk 0:06:28.7]} 15. f4 {[%clk
0:05:14.8]} 15... Re8 {[%clk 0:06:21.4]} 16. Rae1 {[%clk 0:04:38]} 16... b5
{[%clk 0:06:03.3]} 17. f5 {[%clk 0:04:22]} 17... Bf8 {[%clk 0:05:47.8]} 18. Bd2
{[%clk 0:04:08.7]} 18... Kb7 {[%clk 0:02:33.8]} 19. b4 {[%clk 0:04:00.6]} 19...
Na4 {[%clk 0:02:33.6]} 20. Nxa4 {[%clk 0:03:39.2]} 20... bxa4 {[%clk 0:02:35.5]}
21. e6 {[%clk 0:03:40]} 21... fxe6 {[%clk 0:02:34.8]} 22. fxe6 {[%clk
0:03:39.7]} 22... Bc8 {[%clk 0:02:35.6]} 23. Rf7 {[%clk 0:03:35.9]} 23... c5
{[%clk 0:02:11.3]} 24. bxc5 {[%clk 0:03:00.8]} 24... Bxc5 {[%clk 0:02:13.2]} 25.
Rb1+ {[%clk 0:03:01.2]} 25... Bb6 {[%clk 0:02:13]} 26. Bf4 {[%clk 0:02:59.5]}
26... a5 {[%clk 0:01:35.6]} 27. Rxc7+ {[%clk 0:02:19.5]} 27... Ka6 {[%clk
0:01:35]} 28. Rc6 {[%clk 0:02:20.4]} 28... Rxe6 {[%clk 0:01:35.6]} 29. Rbxb6+
{[%clk 0:02:16.3]} 1-0

[Event "GrandPrix_30.05"]
[Site "Chess.com"]
[Date "2020.05.30"]
[Round "6"]
[White "mishikomchedlishvili"]
[Black "rim1618"]
[Result "1-0"]
[WhiteElo "2564"]
[BlackElo "2377"]
[TimeControl "600+2"]
[EndTime "10:53:00 PDT"]
[Termination "mishikomchedlishvili won by resignation"]

1. d4 {[%clk 0:09:05.5]} 1... Nf6 {[%clk 0:09:59.9]} 2. Bg5 {[%clk 0:09:05.8]}
2... e6 {[%clk 0:10:00.6]} 3. e4 {[%clk 0:09:06]} 3... h6 {[%clk 0:10:01.2]} 4.
Bxf6 {[%clk 0:09:06.8]} 4... Qxf6 {[%clk 0:10:03.1]} 5. c3 {[%clk 0:09:08]} 5...
d5 {[%clk 0:09:56.3]} 6. Nd2 {[%clk 0:09:07.8]} 6... c5 {[%clk 0:09:55.4]} 7.
Ngf3 {[%clk 0:09:05.3]} 7... Nc6 {[%clk 0:09:54.4]} 8. Bb5 {[%clk 0:09:00]} 8...
cxd4 {[%clk 0:08:30.7]} 9. Nxd4 {[%clk 0:08:54.2]} 9... Bc5 {[%clk 0:08:11.9]}
10. exd5 {[%clk 0:08:11.3]} 10... exd5 {[%clk 0:08:10]} 11. Qe2+ {[%clk
0:07:55.9]} 11... Kf8 {[%clk 0:07:56]} 12. O-O {[%clk 0:07:15.2]} 12... g6
{[%clk 0:07:04.5]} 13. N2b3 {[%clk 0:06:53.9]} 13... Bb6 {[%clk 0:07:04.7]} 14.
Qf3 {[%clk 0:06:04.6]} 14... Qxf3 {[%clk 0:06:57.9]} 15. Nxf3 {[%clk 0:06:05.6]}
15... Bg4 {[%clk 0:06:50.9]} 16. Bxc6 {[%clk 0:05:45.2]} 16... bxc6 {[%clk
0:06:50]} 17. Ne5 {[%clk 0:05:45.3]} 17... Bf5 {[%clk 0:06:19]} 18. Nxc6 {[%clk
0:05:45.8]} 18... Kg7 {[%clk 0:06:19.9]} 19. Rfe1 {[%clk 0:05:39.2]} 19... Rhe8
{[%clk 0:06:19.2]} 20. Nbd4 {[%clk 0:05:30.1]} 20... Bd7 {[%clk 0:05:47]} 21.
Ne5 {[%clk 0:05:29.5]} 21... Bc8 {[%clk 0:05:33.4]} 22. Rad1 {[%clk 0:05:23.6]}
22... Bb7 {[%clk 0:05:33.1]} 23. Nd7 {[%clk 0:05:07.3]} 23... Bxd4 {[%clk
0:04:58.7]} 24. cxd4 {[%clk 0:05:05.6]} 24... Bc6 {[%clk 0:04:57.7]} 25. Nc5
{[%clk 0:05:06.2]} 25... a5 {[%clk 0:04:56.2]} 26. f3 {[%clk 0:04:48.1]} 26...
Rxe1+ {[%clk 0:04:52.1]} 27. Rxe1 {[%clk 0:04:48.9]} 27... Rb8 {[%clk
0:04:53.5]} 28. Re2 {[%clk 0:04:49.7]} 28... Rb4 {[%clk 0:04:50.4]} 29. Rd2
{[%clk 0:04:50.5]} 29... a4 {[%clk 0:04:50.3]} 30. Kf2 {[%clk 0:04:51]} 30...
Rc4 {[%clk 0:04:49.7]} 31. Ke3 {[%clk 0:04:47.8]} 31... Rc1 {[%clk 0:04:49.6]}
32. Nd3 {[%clk 0:04:33.7]} 32... Ra1 {[%clk 0:04:40.5]} 33. Nb4 {[%clk
0:04:32.1]} 33... Bd7 {[%clk 0:04:32.9]} 34. a3 {[%clk 0:03:48.5]} 34... Be6
{[%clk 0:04:32.6]} 35. Nd3 {[%clk 0:03:44.6]} 35... Bd7 {[%clk 0:04:27.9]} 36.
Nb4 {[%clk 0:03:34.5]} 36... Be6 {[%clk 0:04:27.8]} 37. Nd3 {[%clk 0:03:07.6]}
37... Bd7 {[%clk 0:04:25.9]} 38. Nf4 {[%clk 0:03:08.7]} 38... Be6 {[%clk
0:04:08.7]} 39. Rc2 {[%clk 0:03:09.7]} 39... g5 {[%clk 0:04:03.7]} 40. Ne2
{[%clk 0:02:49.5]} 40... Bd7 {[%clk 0:03:32.3]} 41. Nc3 {[%clk 0:02:42.7]} 41...
Bc6 {[%clk 0:03:30.9]} 42. Re2 {[%clk 0:02:38.8]} 42... Kf6 {[%clk 0:03:21.3]}
43. Kd2 {[%clk 0:02:38.1]} 43... Rh1 {[%clk 0:03:15.4]} 44. h3 {[%clk
0:02:37.8]} 44... Rg1 {[%clk 0:03:12.4]} 45. Ke3 {[%clk 0:02:34.6]} 45... h5
{[%clk 0:03:08]} 46. Kf2 {[%clk 0:02:31.3]} 46... Rc1 {[%clk 0:03:08.9]} 47. Rd2
{[%clk 0:02:27.3]} 47... h4 {[%clk 0:03:06.7]} 48. Na2 {[%clk 0:02:13.3]} 48...
Bb5 {[%clk 0:03:01.5]} 49. Nxc1 {[%clk 0:02:13.4]} 1-0

[Event "GrandPrix_30.05"]
[Site "Chess.com"]
[Date "2020.05.30"]
[Round "6"]
[White "swisspower96"]
[Black "gygygygygyggygygygy"]
[Result "1-0"]
[WhiteElo "2334"]
[BlackElo "2056"]
[TimeControl "600+2"]
[EndTime "10:53:02 PDT"]
[Termination "swisspower96 won by resignation"]

1. d4 {[%clk 0:10:01.9]} 1... Nf6 {[%clk 0:09:59.7]} 2. c4 {[%clk 0:10:02.2]}
2... e6 {[%clk 0:09:58.7]} 3. Nf3 {[%clk 0:10:01.8]} 3... b6 {[%clk 0:09:58]} 4.
g3 {[%clk 0:10:02.5]} 4... Bb4+ {[%clk 0:09:53.2]} 5. Bd2 {[%clk 0:09:59]} 5...
Be7 {[%clk 0:09:53.8]} 6. Nc3 {[%clk 0:09:48]} 6... c6 {[%clk 0:09:49.3]} 7. e4
{[%clk 0:09:25]} 7... d5 {[%clk 0:09:49.2]} 8. Qc2 {[%clk 0:08:50.6]} 8... O-O
{[%clk 0:09:43.2]} 9. e5 {[%clk 0:08:47]} 9... Nfd7 {[%clk 0:09:42.1]} 10. cxd5
{[%clk 0:08:42]} 10... cxd5 {[%clk 0:09:28.6]} 11. h4 {[%clk 0:08:35]} 11... Ba6
{[%clk 0:08:13]} 12. Nb5 {[%clk 0:08:30.4]} 12... Nc6 {[%clk 0:07:51]} 13. Qa4
{[%clk 0:06:54.5]} 13... Bb7 {[%clk 0:07:41.5]} 14. Bd3 {[%clk 0:06:48.7]} 14...
a6 {[%clk 0:07:07.2]} 15. Nc3 {[%clk 0:06:49.2]} 15... Nb4 {[%clk 0:07:03.7]}
16. Bb1 {[%clk 0:06:42.1]} 16... b5 {[%clk 0:06:34]} 17. Qd1 {[%clk 0:06:41.7]}
17... f5 {[%clk 0:05:22.4]} 18. exf6 {[%clk 0:06:37.8]} 18... Nxf6 {[%clk
0:05:21.1]} 19. O-O {[%clk 0:06:23.8]} 19... Ne4 {[%clk 0:04:43.4]} 20. Nxe4
{[%clk 0:06:18.7]} 20... dxe4 {[%clk 0:04:42.8]} 21. Ng5 {[%clk 0:06:19.7]}
21... Qxd4 {[%clk 0:02:44.1]} 22. Nxe6 {[%clk 0:04:10.6]} 22... Qd5 {[%clk
0:02:07.3]} 23. Qg4 {[%clk 0:03:42.5]} 23... Rf7 {[%clk 0:01:47.6]} 24. Bxb4
{[%clk 0:03:23.7]} 24... Bxb4 {[%clk 0:01:38.4]} 25. Ng5 {[%clk 0:03:19.9]}
25... Re7 {[%clk 0:01:04.6]} 26. a3 {[%clk 0:03:19.3]} 26... Bd2 {[%clk
0:00:41.3]} 27. Ba2 {[%clk 0:03:17.6]} 1-0

[Event "GrandPrix_30.05"]
[Site "Chess.com"]
[Date "2020.05.30"]
[Round "6"]
[White "NikolaGry"]
[Black "Tesla37"]
[Result "0-1"]
[WhiteElo "2197"]
[BlackElo "2742"]
[TimeControl "600+2"]
[EndTime "10:53:32 PDT"]
[Termination "Tesla37 won by resignation"]

1. d4 {[%clk 0:09:59.1]} 1... Nf6 {[%clk 0:09:59.6]} 2. Nf3 {[%clk 0:09:56.8]}
2... d6 {[%clk 0:10:00]} 3. c3 {[%clk 0:09:49.1]} 3... Nbd7 {[%clk 0:09:56.3]}
4. Bf4 {[%clk 0:09:48.3]} 4... g6 {[%clk 0:09:56.2]} 5. h3 {[%clk 0:09:47.9]}
5... Bg7 {[%clk 0:09:56.9]} 6. e3 {[%clk 0:09:48.9]} 6... O-O {[%clk 0:09:56.7]}
7. Be2 {[%clk 0:09:49.2]} 7... Qe8 {[%clk 0:09:41.3]} 8. O-O {[%clk 0:09:42.1]}
8... e5 {[%clk 0:09:41.7]} 9. Bh2 {[%clk 0:09:42.7]} 9... Qe7 {[%clk 0:09:40.1]}
10. a4 {[%clk 0:09:32.7]} 10... Re8 {[%clk 0:09:30.8]} 11. Na3 {[%clk
0:09:31.3]} 11... e4 {[%clk 0:09:17.5]} 12. Nd2 {[%clk 0:09:31.2]} 12... Nf8
{[%clk 0:09:18]} 13. a5 {[%clk 0:09:15.3]} 13... a6 {[%clk 0:09:02.7]} 14. b4
{[%clk 0:08:57.1]} 14... h5 {[%clk 0:08:54.3]} 15. c4 {[%clk 0:08:37.9]} 15...
N8h7 {[%clk 0:08:29.1]} 16. Re1 {[%clk 0:08:24.1]} 16... Ng5 {[%clk 0:08:16.5]}
17. Bf1 {[%clk 0:08:22]} 17... Bf5 {[%clk 0:08:08.8]} 18. b5 {[%clk 0:08:07.6]}
18... axb5 {[%clk 0:07:46.6]} 19. Nxb5 {[%clk 0:08:04.3]} 19... Qd7 {[%clk
0:07:45.2]} 20. c5 {[%clk 0:07:04.2]} 20... Bf8 {[%clk 0:07:33.6]} 21. cxd6
{[%clk 0:06:57.8]} 21... cxd6 {[%clk 0:07:31.3]} 22. Qb3 {[%clk 0:04:09.5]}
22... Be6 {[%clk 0:05:28.2]} 23. Qa4 {[%clk 0:03:32.7]} 23... Rec8 {[%clk
0:05:10.2]} 24. Rec1 {[%clk 0:02:43.2]} 24... Rc6 {[%clk 0:04:18.8]} 25. h4
{[%clk 0:02:21]} 25... Ngh7 {[%clk 0:04:12.9]} 26. Nc3 {[%clk 0:01:56.8]} 26...
Qc7 {[%clk 0:03:39.8]} 27. Nb5 {[%clk 0:01:06.1]} 27... Qxa5 {[%clk 0:03:08]}
28. Qxa5 {[%clk 0:01:01.7]} 28... Rxa5 {[%clk 0:03:07.2]} 29. Rxa5 {[%clk
0:00:56.4]} 29... Rxc1 {[%clk 0:03:06.4]} 30. Bxd6 {[%clk 0:00:44]} 30... Rd1
{[%clk 0:02:53.3]} 31. Ra8 {[%clk 0:00:40.7]} 31... Rxd2 {[%clk 0:02:49]} 0-1

[Event "GrandPrix_30.05"]
[Site "Chess.com"]
[Date "2020.05.30"]
[Round "6"]
[White "Lion_DL"]
[Black "DinaBelenkaya"]
[Result "1-0"]
[WhiteElo "2129"]
[BlackElo "1635"]
[TimeControl "600+2"]
[EndTime "10:53:36 PDT"]
[Termination "Lion_DL won by resignation"]

1. e4 {[%clk 0:10:01.9]} 1... d5 {[%clk 0:09:54.8]} 2. exd5 {[%clk 0:10:02.6]}
2... Qxd5 {[%clk 0:09:52.4]} 3. Nc3 {[%clk 0:10:04]} 3... Qa5 {[%clk 0:09:50.2]}
4. Bc4 {[%clk 0:10:04.7]} 4... Nf6 {[%clk 0:09:47]} 5. d3 {[%clk 0:10:05.5]}
5... Bg4 {[%clk 0:09:09.6]} 6. f3 {[%clk 0:10:04.2]} 6... Bd7 {[%clk 0:09:09.6]}
7. Bd2 {[%clk 0:09:58.2]} 7... Qb6 {[%clk 0:09:03]} 8. Qe2 {[%clk 0:09:15]} 8...
e6 {[%clk 0:08:27]} 9. O-O-O {[%clk 0:09:12.5]} 9... Bc5 {[%clk 0:06:26.7]} 10.
f4 {[%clk 0:06:55.3]} 10... Kf8 {[%clk 0:04:23.2]} 11. Nf3 {[%clk 0:06:24.9]}
11... a5 {[%clk 0:03:59.6]} 12. d4 {[%clk 0:05:06.9]} 12... Bb4 {[%clk
0:03:40.5]} 13. d5 {[%clk 0:05:03.8]} 13... exd5 {[%clk 0:03:19]} 14. Nxd5
{[%clk 0:04:56.2]} 14... Nxd5 {[%clk 0:03:12.2]} 15. Bxd5 {[%clk 0:04:55.6]}
15... Bb5 {[%clk 0:01:03]} 16. Bc4 {[%clk 0:04:21.1]} 16... Bxc4 {[%clk
0:00:50.5]} 17. Qxc4 {[%clk 0:04:23]} 17... Nc6 {[%clk 0:00:06.3]} 18. Ng5
{[%clk 0:04:03.9]} 18... Ne5 {[%clk 0:00:05.6]} 19. fxe5 {[%clk 0:03:59.9]}
19... Qg6 {[%clk 0:00:04.4]} 20. Rhf1 {[%clk 0:03:31.1]} 20... Bxd2+ {[%clk
0:00:03.9]} 21. Rxd2 {[%clk 0:03:31.4]} 21... f6 {[%clk 0:00:04.1]} 22. Ne6+
{[%clk 0:02:52]} 22... Ke7 {[%clk 0:00:05.3]} 23. exf6+ {[%clk 0:02:52.3]} 23...
gxf6 {[%clk 0:00:04.5]} 24. Qxc7+ {[%clk 0:02:46.1]} 24... Kxe6 {[%clk
0:00:05.9]} 25. Re2+ {[%clk 0:02:46.2]} 25... Kd5 {[%clk 0:00:05.8]} 26. Rd1+
{[%clk 0:02:45.8]} 1-0

[Event "GrandPrix_30.05"]
[Site "Chess.com"]
[Date "2020.05.30"]
[Round "6"]
[White "Olga_Girya"]
[Black "Baron_von_Koenig"]
[Result "0-1"]
[WhiteElo "2213"]
[BlackElo "2165"]
[TimeControl "600+2"]
[EndTime "10:53:40 PDT"]
[Termination "Baron_von_Koenig won by resignation"]

1. d4 {[%clk 0:10:01.9]} 1... Nc6 {[%clk 0:10:00.4]} 2. c4 {[%clk 0:09:57.1]}
2... e5 {[%clk 0:10:00.7]} 3. dxe5 {[%clk 0:09:41.5]} 3... Nxe5 {[%clk 0:10:01]}
4. e4 {[%clk 0:09:37.2]} 4... Qh4 {[%clk 0:08:12.6]} 5. Qd4 {[%clk 0:09:02.8]}
5... Nc6 {[%clk 0:07:51.5]} 6. Qe3 {[%clk 0:08:52]} 6... Nf6 {[%clk 0:07:52.1]}
7. Nc3 {[%clk 0:07:50.1]} 7... Bb4 {[%clk 0:07:52.2]} 8. Bd2 {[%clk 0:07:32.5]}
8... Bxc3 {[%clk 0:07:17.3]} 9. Bxc3 {[%clk 0:07:32.5]} 9... Qxe4 {[%clk
0:07:18.4]} 10. Qxe4+ {[%clk 0:06:30]} 10... Nxe4 {[%clk 0:07:18.7]} 11. Bxg7
{[%clk 0:06:30.6]} 11... Rg8 {[%clk 0:07:19.9]} 12. Bh6 {[%clk 0:06:31.5]} 12...
Nb4 {[%clk 0:07:21.1]} 13. f3 {[%clk 0:03:51]} 13... Nc2+ {[%clk 0:07:13.2]} 14.
Kd1 {[%clk 0:03:51.5]} 14... Nxa1 {[%clk 0:07:14.5]} 15. fxe4 {[%clk 0:03:51.8]}
15... Rg6 {[%clk 0:07:16]} 16. Bd2 {[%clk 0:03:18.7]} 16... Ra6 {[%clk
0:07:16.7]} 17. a3 {[%clk 0:03:00.3]} 17... Nb3 {[%clk 0:07:16.7]} 18. Bc3
{[%clk 0:03:01.2]} 18... c5 {[%clk 0:06:09.3]} 19. Kc2 {[%clk 0:01:59]} 19...
Nd4+ {[%clk 0:05:52.9]} 20. Bxd4 {[%clk 0:01:59.7]} 20... cxd4 {[%clk
0:05:54.2]} 21. Nf3 {[%clk 0:02:01.5]} 21... Rf6 {[%clk 0:05:37.9]} 22. Kd3
{[%clk 0:00:55.9]} 22... d6 {[%clk 0:05:33]} 23. Kxd4 {[%clk 0:00:56.5]} 23...
Bg4 {[%clk 0:05:17.2]} 24. Be2 {[%clk 0:00:57.6]} 24... O-O-O {[%clk 0:05:17.8]}
25. h3 {[%clk 0:00:39.9]} 25... Bh5 {[%clk 0:05:18.2]} 26. Re1 {[%clk
0:00:17.7]} 26... Re8 {[%clk 0:05:01.1]} 27. Ng5 {[%clk 0:00:18.3]} 27... Bxe2
{[%clk 0:05:00.6]} 28. Rxe2 {[%clk 0:00:20.2]} 28... h6 {[%clk 0:04:58.1]} 29.
Nf3 {[%clk 0:00:21]} 29... Rf4 {[%clk 0:04:56.6]} 30. Kd5 {[%clk 0:00:21.1]}
30... Kd7 {[%clk 0:04:52.4]} 31. b4 {[%clk 0:00:18.5]} 31... b6 {[%clk 0:04:20]}
32. c5 {[%clk 0:00:18.5]} 32... bxc5 {[%clk 0:04:19.3]} 33. bxc5 {[%clk
0:00:19.7]} 33... dxc5 {[%clk 0:04:19.4]} 34. Ne5+ {[%clk 0:00:20.2]} 34... Kc7
{[%clk 0:03:57.9]} 35. Rc2 {[%clk 0:00:18.7]} 35... Rd8+ {[%clk 0:03:58.7]} 36.
Kxc5 {[%clk 0:00:19.2]} 36... Rxe4 {[%clk 0:03:53.7]} 37. Nxf7 {[%clk
0:00:19.7]} 37... Rd7 {[%clk 0:03:40.8]} 38. Nxh6 {[%clk 0:00:20.7]} 38... Rd6
{[%clk 0:03:39]} 39. Kb5+ {[%clk 0:00:19.4]} 39... Kb7 {[%clk 0:03:39.8]} 40.
Nf7 {[%clk 0:00:15.1]} 40... Rd5+ {[%clk 0:03:40.6]} 41. Rc5 {[%clk 0:00:13.8]}
41... a6+ {[%clk 0:03:41.9]} 0-1

[Event "GrandPrix_30.05"]
[Site "Chess.com"]
[Date "2020.05.30"]
[Round "6"]
[White "A_N_D-R_E_I"]
[Black "ZEN-22"]
[Result "1-0"]
[WhiteElo "2117"]
[BlackElo "2157"]
[TimeControl "600+2"]
[EndTime "10:53:56 PDT"]
[Termination "A_N_D-R_E_I won by resignation"]

1. e4 {[%clk 0:09:03.1]} 1... e6 {[%clk 0:09:39.8]} 2. d4 {[%clk 0:09:03.8]}
2... c5 {[%clk 0:09:32.2]} 3. Nf3 {[%clk 0:09:03.5]} 3... cxd4 {[%clk
0:09:32.7]} 4. Nxd4 {[%clk 0:09:05.4]} 4... Nf6 {[%clk 0:09:34.1]} 5. Nc3 {[%clk
0:09:05.7]} 5... Bb4 {[%clk 0:09:29.2]} 6. Nb5 {[%clk 0:08:27.8]} 6... O-O
{[%clk 0:09:18.8]} 7. a3 {[%clk 0:08:22.4]} 7... Bxc3+ {[%clk 0:09:18.5]} 8.
Nxc3 {[%clk 0:08:22.7]} 8... d5 {[%clk 0:09:19.9]} 9. Bd3 {[%clk 0:08:18.4]}
9... Nc6 {[%clk 0:09:17.7]} 10. O-O {[%clk 0:08:16.5]} 10... h6 {[%clk
0:09:18.5]} 11. Re1 {[%clk 0:07:45.9]} 11... dxe4 {[%clk 0:09:14.6]} 12. Nxe4
{[%clk 0:07:45.3]} 12... Ne5 {[%clk 0:09:12.9]} 13. Nc5 {[%clk 0:06:40.1]} 13...
Nxd3 {[%clk 0:09:11]} 14. Nxd3 {[%clk 0:06:40.1]} 14... b6 {[%clk 0:08:49.1]}
15. Qf3 {[%clk 0:06:38]} 15... Rb8 {[%clk 0:08:45.9]} 16. Qg3 {[%clk 0:06:34]}
16... Ba6 {[%clk 0:08:35.8]} 17. Bxh6 {[%clk 0:06:27.6]} 17... Nh5 {[%clk
0:08:36.1]} 18. Qg4 {[%clk 0:06:27.4]} 18... Bxd3 {[%clk 0:08:36.7]} 19. cxd3
{[%clk 0:06:24.5]} 19... Qd5 {[%clk 0:08:18.6]} 20. Bg5 {[%clk 0:05:55.9]} 20...
g6 {[%clk 0:08:14.5]} 21. d4 {[%clk 0:05:55.9]} 21... Rbc8 {[%clk 0:08:12.3]}
22. Re5 {[%clk 0:05:37.8]} 22... Qc4 {[%clk 0:07:50.8]} 23. Rae1 {[%clk
0:04:25]} 23... Kg7 {[%clk 0:06:59.6]} 24. Bh4 {[%clk 0:03:11.1]} 24... Rh8
{[%clk 0:06:43.8]} 25. h3 {[%clk 0:02:38.2]} 25... Rc7 {[%clk 0:05:48.5]} 26.
Rd1 {[%clk 0:01:15.9]} 26... Rd7 {[%clk 0:05:44.8]} 27. Kh2 {[%clk 0:00:32]}
27... Rd5 {[%clk 0:04:53]} 28. Rxd5 {[%clk 0:00:25.2]} 28... Qxd5 {[%clk
0:04:51]} 29. Rc1 {[%clk 0:00:20.8]} 29... Qd6+ {[%clk 0:04:42.7]} 30. Kg1
{[%clk 0:00:21.4]} 30... Qf4 {[%clk 0:04:42.6]} 31. Bg5 {[%clk 0:00:14.3]} 31...
Qd6 {[%clk 0:04:34.3]} 32. b4 {[%clk 0:00:07.6]} 32... Rf8 {[%clk 0:04:29.8]}
33. h4 {[%clk 0:00:05.5]} 33... Re8 {[%clk 0:04:15.3]} 34. Be3 {[%clk
0:00:05.8]} 34... Re7 {[%clk 0:04:14.5]} 35. Qg5 {[%clk 0:00:06.6]} 35... f6
{[%clk 0:04:13.2]} 36. Qh6+ {[%clk 0:00:07.6]} 36... Kf7 {[%clk 0:04:10.1]} 37.
Qh7+ {[%clk 0:00:08]} 37... Kf8 {[%clk 0:04:01]} 38. Bh6+ {[%clk 0:00:08.1]}
38... Ke8 {[%clk 0:03:59]} 39. Qxg6+ {[%clk 0:00:09]} 39... Kd7 {[%clk
0:03:58.6]} 40. Qxh5 {[%clk 0:00:09.9]} 40... e5 {[%clk 0:03:46.9]} 41. dxe5
{[%clk 0:00:09.1]} 41... Rxe5 {[%clk 0:03:47.3]} 42. Qg4+ {[%clk 0:00:07]} 42...
Re6 {[%clk 0:03:46.5]} 43. Rd1 {[%clk 0:00:07.2]} 43... f5 {[%clk 0:03:45.3]}
44. Rxd6+ {[%clk 0:00:07.6]} 1-0

[Event "GrandPrix_30.05"]
[Site "Chess.com"]
[Date "2020.05.30"]
[Round "6"]
[White "Thor736"]
[Black "Bengalas"]
[Result "1-0"]
[WhiteElo "2111"]
[BlackElo "2139"]
[TimeControl "600+2"]
[EndTime "10:54:05 PDT"]
[Termination "Thor736 won by resignation"]

1. e4 {[%clk 0:10:00.3]} 1... c5 {[%clk 0:10:00.5]} 2. Nf3 {[%clk 0:10:00]} 2...
e6 {[%clk 0:10:01.2]} 3. d4 {[%clk 0:10:01.2]} 3... cxd4 {[%clk 0:10:02.8]} 4.
Nxd4 {[%clk 0:10:02.6]} 4... Nc6 {[%clk 0:10:03.9]} 5. Nc3 {[%clk 0:10:03.7]}
5... Qc7 {[%clk 0:10:04.4]} 6. f4 {[%clk 0:10:05]} 6... a6 {[%clk 0:10:05]} 7.
Nxc6 {[%clk 0:10:06.3]} 7... bxc6 {[%clk 0:10:05.4]} 8. Bd3 {[%clk 0:10:07.5]}
8... d5 {[%clk 0:10:06.1]} 9. O-O {[%clk 0:10:08.7]} 9... Nf6 {[%clk 0:10:05.7]}
10. Qe2 {[%clk 0:10:07.1]} 10... Be7 {[%clk 0:10:01.3]} 11. Bd2 {[%clk 0:10:08]}
11... g6 {[%clk 0:08:08.3]} 12. Rae1 {[%clk 0:09:27.4]} 12... O-O {[%clk
0:07:44.4]} 13. Kh1 {[%clk 0:09:10.3]} 13... Bb7 {[%clk 0:06:46.2]} 14. e5
{[%clk 0:07:57.6]} 14... Nd7 {[%clk 0:05:47.3]} 15. Na4 {[%clk 0:07:50.1]} 15...
c5 {[%clk 0:05:20.3]} 16. c4 {[%clk 0:07:48.1]} 16... Nb6 {[%clk 0:05:14.7]} 17.
Ba5 {[%clk 0:07:41.4]} 17... Qc6 {[%clk 0:04:39.7]} 18. Nxb6 {[%clk 0:07:41.4]}
18... Bd8 {[%clk 0:02:28.6]} 19. cxd5 {[%clk 0:05:50.9]} 19... exd5 {[%clk
0:02:27]} 20. Nxa8 {[%clk 0:04:46.7]} 20... Bxa5 {[%clk 0:02:25.4]} 21. Rc1
{[%clk 0:04:35.3]} 21... Rxa8 {[%clk 0:02:18.4]} 22. b3 {[%clk 0:04:24.6]} 22...
Re8 {[%clk 0:02:05.2]} 23. a3 {[%clk 0:04:07.6]} 23... Bd8 {[%clk 0:01:13.4]}
24. Qc2 {[%clk 0:03:56.9]} 24... Be7 {[%clk 0:01:09]} 25. f5 {[%clk 0:03:47.6]}
25... Bf8 {[%clk 0:00:23.9]} 26. e6 {[%clk 0:03:02]} 26... fxe6 {[%clk
0:00:24.7]} 27. fxg6 {[%clk 0:03:02.6]} 27... h6 {[%clk 0:00:25.6]} 28. Qf2
{[%clk 0:02:45.9]} 28... Kh8 {[%clk 0:00:07.4]} 29. Qf7 {[%clk 0:02:34.7]} 29...
Bg7 {[%clk 0:00:08.2]} 30. Rxc5 {[%clk 0:02:33]} 1-0

[Event "GrandPrix_30.05"]
[Site "Chess.com"]
[Date "2020.05.30"]
[Round "6"]
[White "Jaka_Brilej"]
[Black "wnstop"]
[Result "1/2-1/2"]
[WhiteElo "2140"]
[BlackElo "2248"]
[TimeControl "600+2"]
[EndTime "10:54:09 PDT"]
[Termination "Game drawn by repetition"]

1. e4 {[%clk 0:10:01.9]} 1... c5 {[%clk 0:09:55.7]} 2. Nf3 {[%clk 0:10:02.7]}
2... Nc6 {[%clk 0:09:56.6]} 3. d4 {[%clk 0:10:02.5]} 3... cxd4 {[%clk
0:09:58.5]} 4. Nxd4 {[%clk 0:10:03.8]} 4... e5 {[%clk 0:09:59.9]} 5. Nb5 {[%clk
0:10:04.8]} 5... d6 {[%clk 0:10:00.8]} 6. N1c3 {[%clk 0:10:04.3]} 6... a6 {[%clk
0:10:01.4]} 7. Na3 {[%clk 0:10:05.6]} 7... Be6 {[%clk 0:10:00.6]} 8. Nc4 {[%clk
0:10:06.2]} 8... b5 {[%clk 0:10:00.6]} 9. Ne3 {[%clk 0:10:07.3]} 9... Nf6 {[%clk
0:09:53.4]} 10. Bd3 {[%clk 0:10:08]} 10... g6 {[%clk 0:09:53.9]} 11. O-O {[%clk
0:10:03.1]} 11... Bg7 {[%clk 0:09:54.7]} 12. a4 {[%clk 0:09:16]} 12... b4 {[%clk
0:09:45.3]} 13. Ncd5 {[%clk 0:09:17.3]} 13... O-O {[%clk 0:09:16.8]} 14. Nxf6+
{[%clk 0:09:02.7]} 14... Bxf6 {[%clk 0:09:17.1]} 15. Bc4 {[%clk 0:08:59.1]}
15... a5 {[%clk 0:08:38.4]} 16. Nd5 {[%clk 0:08:50.8]} 16... Bg5 {[%clk
0:07:55.4]} 17. Be3 {[%clk 0:08:34.6]} 17... Bxe3 {[%clk 0:07:51.8]} 18. Nxe3
{[%clk 0:08:13.7]} 18... Rc8 {[%clk 0:07:19.7]} 19. Bxe6 {[%clk 0:07:56.8]}
19... fxe6 {[%clk 0:07:21.6]} 20. c3 {[%clk 0:07:57.9]} 20... bxc3 {[%clk
0:07:07.6]} 21. bxc3 {[%clk 0:07:59.8]} 21... Nb8 {[%clk 0:07:06.8]} 22. Qb3
{[%clk 0:07:58.3]} 22... Re8 {[%clk 0:06:31.3]} 23. Rfd1 {[%clk 0:07:50.8]}
23... Qc7 {[%clk 0:06:27]} 24. Rac1 {[%clk 0:07:41.1]} 24... Nd7 {[%clk
0:06:14.4]} 25. h4 {[%clk 0:07:02.6]} 25... Nc5 {[%clk 0:05:59.5]} 26. Qc2
{[%clk 0:07:03.2]} 26... Qc6 {[%clk 0:05:56.7]} 27. Ng4 {[%clk 0:06:51.4]} 27...
Rf8 {[%clk 0:05:49.6]} 28. f3 {[%clk 0:06:32.4]} 28... Nxa4 {[%clk 0:05:46.8]}
29. Qd2 {[%clk 0:05:41.3]} 29... Nxc3 {[%clk 0:04:44.6]} 30. Kh2 {[%clk
0:05:31.7]} 30... d5 {[%clk 0:03:20.5]} 31. Qg5 {[%clk 0:05:01.6]} 31... Qc7
{[%clk 0:01:54.9]} 32. h5 {[%clk 0:03:47.4]} 32... Qd8 {[%clk 0:01:45.6]} 33.
Qxe5 {[%clk 0:03:16.3]} 33... Qh4+ {[%clk 0:01:43.2]} 34. Kg1 {[%clk 0:03:17.3]}
34... Ne2+ {[%clk 0:01:41.7]} 35. Kf1 {[%clk 0:03:13.6]} 35... Ng3+ {[%clk
0:00:49]} 36. Kg1 {[%clk 0:02:57.1]} 36... Ne2+ {[%clk 0:00:20.6]} 37. Kf1
{[%clk 0:02:54.6]} 37... Ng3+ {[%clk 0:00:21.7]} 38. Kg1 {[%clk 0:02:48]} 38...
Ne2+ {[%clk 0:00:22.5]} 1/2-1/2